[Event "*** Titled Tuesday Blitz"]
[Site "Chess.com"]
[Date "2020.05.05"]
[Round "3"]
[White "Rytenko_V"]
[Black "Efremov_Vlad"]
[Result "1-0"]
[WhiteElo "2474"]
[BlackElo "2123"]
[TimeControl "180+1"]
[EndTime "10:28:41 PDT"]
[Termination "Rytenko_V won by resignation"]

1. d4 {[%clk 0:03:00.9]} 1... d5 {[%clk 0:02:59.7]} 2. c4 {[%clk 0:02:59]} 2...
e6 {[%clk 0:03:00]} 3. Nf3 {[%clk 0:02:58.2]} 3... Nf6 {[%clk 0:03:00.4]} 4. g3
{[%clk 0:02:56.8]} 4... dxc4 {[%clk 0:03:00.1]} 5. Bg2 {[%clk 0:02:57.7]} 5...
Nc6 {[%clk 0:03:00]} 6. O-O {[%clk 0:02:58.1]} 6... Rb8 {[%clk 0:02:59.5]} 7.
Ne5 {[%clk 0:02:54]} 7... Nxd4 {[%clk 0:02:23.6]} 8. e3 {[%clk 0:02:50.6]} 8...
Nc6 {[%clk 0:02:11.7]} 9. Bxc6+ {[%clk 0:02:49.1]} 9... bxc6 {[%clk 0:02:08.9]}
10. Qxd8+ {[%clk 0:02:48.6]} 10... Kxd8 {[%clk 0:02:09.3]} 11. Nxc6+ {[%clk
0:02:47.2]} 11... Ke8 {[%clk 0:02:02.1]} 12. Nxb8 {[%clk 0:02:47.5]} 12... Bb7
{[%clk 0:02:02.8]} 13. Na3 {[%clk 0:02:42.3]} 13... Bd6 {[%clk 0:02:00.4]} 14.
Nxc4 {[%clk 0:02:41.3]} 14... Ke7 {[%clk 0:02:00.6]} 15. Na5 {[%clk 0:02:32.6]}
15... Rxb8 {[%clk 0:01:59.4]} 16. Nxb7 {[%clk 0:02:33.1]} 16... Rxb7 {[%clk
0:01:59.8]} 17. b3 {[%clk 0:02:34]} 17... Be5 {[%clk 0:01:59.7]} 18. Rb1 {[%clk
0:02:34.1]} 18... Ne4 {[%clk 0:01:58.4]} 19. Bb2 {[%clk 0:02:34.1]} 19... Bxb2
{[%clk 0:01:43]} 20. Rxb2 {[%clk 0:02:34]} 20... a5 {[%clk 0:01:43.7]} 21. f3
{[%clk 0:02:30.6]} 21... Nd6 {[%clk 0:01:41.5]} 22. Kf2 {[%clk 0:02:28.9]} 22...
a4 {[%clk 0:01:41.5]} 23. Rfb1 {[%clk 0:02:27.4]} 23... axb3 {[%clk 0:01:40.1]}
24. Rxb3 {[%clk 0:02:27.2]} 24... Ra7 {[%clk 0:01:40.6]} 25. Ra1 {[%clk
0:02:27.2]} 25... c5 {[%clk 0:01:38.8]} 26. a4 {[%clk 0:02:27.6]} 26... c4
{[%clk 0:01:39.1]} 27. Rba3 {[%clk 0:02:25.3]} 27... Ra5 {[%clk 0:01:37.7]} 28.
e4 {[%clk 0:02:24.4]} 28... f6 {[%clk 0:01:34.1]} 29. Rb1 {[%clk 0:02:23.4]}
29... Kd7 {[%clk 0:01:31.5]} 30. Ke3 {[%clk 0:02:21.5]} 30... Kc6 {[%clk
0:01:28.9]} 31. Kd4 {[%clk 0:02:13.5]} 31... Kc7 {[%clk 0:01:02.3]} 32. Rb4
{[%clk 0:02:07]} 32... Kc6 {[%clk 0:00:57.9]} 33. Ra1 {[%clk 0:01:51.2]} 33...
e5+ {[%clk 0:00:49.7]} 34. Kc3 {[%clk 0:01:50.5]} 34... Kc7 {[%clk 0:00:39.4]}
35. Rd1 {[%clk 0:01:41.4]} 35... Kc6 {[%clk 0:00:36.5]} 36. Rd2 {[%clk
0:01:27.2]} 36... Rc5 {[%clk 0:00:23.1]} 37. Rxd6+ {[%clk 0:01:23.8]} 37... Kxd6
{[%clk 0:00:22.4]} 38. Rxc4 {[%clk 0:01:24.4]} 38... Ra5 {[%clk 0:00:21.2]} 39.
Kb4 {[%clk 0:01:24.8]} 39... Ra8 {[%clk 0:00:21]} 40. Rc5 {[%clk 0:01:25.1]}
40... Rb8+ {[%clk 0:00:20]} 41. Rb5 {[%clk 0:01:25.6]} 41... Rc8 {[%clk
0:00:20.1]} 42. Rd5+ {[%clk 0:01:25.9]} 42... Ke6 {[%clk 0:00:19.3]} 43. a5
{[%clk 0:01:26.5]} 43... Rc2 {[%clk 0:00:18.4]} 44. a6 {[%clk 0:01:25.3]} 44...
Rb2+ {[%clk 0:00:16.7]} 45. Ka5 {[%clk 0:01:25.5]} 45... Ra2+ {[%clk 0:00:16.3]}
46. Kb6 {[%clk 0:01:25.9]} 46... Rb2+ {[%clk 0:00:16.3]} 47. Rb5 {[%clk
0:01:26.1]} 47... Rxh2 {[%clk 0:00:15.7]} 48. a7 {[%clk 0:01:26.5]} 48... Ra2
{[%clk 0:00:15]} 49. Ra5 {[%clk 0:01:27]} 1-0

[Event "*** Titled Tuesday Blitz"]
[Site "Chess.com"]
[Date "2020.05.05"]
[Round "3"]
[White "NotFischer"]
[Black "Omk124"]
[Result "1-0"]
[WhiteElo "2158"]
[BlackElo "2396"]
[TimeControl "180+1"]
[EndTime "10:28:42 PDT"]
[Termination "NotFischer won by resignation"]

1. e4 {[%clk 0:03:00.8]} 1... c5 {[%clk 0:02:59.9]} 2. Nf3 {[%clk 0:03:00.8]}
2... d6 {[%clk 0:03:00.1]} 3. d4 {[%clk 0:03:01.2]} 3... cxd4 {[%clk 0:03:00.4]}
4. Nxd4 {[%clk 0:03:02.1]} 4... Nf6 {[%clk 0:03:01]} 5. Nc3 {[%clk 0:03:01.7]}
5... a6 {[%clk 0:03:01.4]} 6. Be2 {[%clk 0:03:01.7]} 6... e5 {[%clk 0:03:01.5]}
7. Nf3 {[%clk 0:03:01.8]} 7... Be7 {[%clk 0:03:01.7]} 8. O-O {[%clk 0:03:01.8]}
8... O-O {[%clk 0:03:02]} 9. Bg5 {[%clk 0:03:01.8]} 9... Nbd7 {[%clk 0:03:01.5]}
10. Qd2 {[%clk 0:03:00.9]} 10... b5 {[%clk 0:03:00.8]} 11. a3 {[%clk 0:02:56.5]}
11... Bb7 {[%clk 0:03:01]} 12. Bd3 {[%clk 0:02:40]} 12... Rc8 {[%clk 0:03:00.6]}
13. Rfe1 {[%clk 0:02:39.3]} 13... h6 {[%clk 0:02:58.7]} 14. Bh4 {[%clk
0:02:35.2]} 14... Qc7 {[%clk 0:02:57.2]} 15. Rad1 {[%clk 0:02:33.5]} 15... Rfd8
{[%clk 0:02:55.9]} 16. Nd5 {[%clk 0:02:31.2]} 16... Nxd5 {[%clk 0:02:46.4]} 17.
exd5 {[%clk 0:02:32.1]} 17... Bxh4 {[%clk 0:02:45.6]} 18. Nxh4 {[%clk 0:02:33]}
18... Nf6 {[%clk 0:02:40.8]} 19. Nf5 {[%clk 0:02:31.7]} 19... Re8 {[%clk
0:01:28.4]} 20. Nxh6+ {[%clk 0:02:26.2]} 20... Kf8 {[%clk 0:00:47.7]} 21. Qg5
{[%clk 0:02:21.6]} 21... gxh6 {[%clk 0:00:24.3]} 22. Qxf6 {[%clk 0:02:21]} 22...
Rcd8 {[%clk 0:00:20.3]} 23. Re3 {[%clk 0:02:07.5]} 23... e4 {[%clk 0:00:20.6]}
24. Bxe4 {[%clk 0:01:54.8]} 24... Re5 {[%clk 0:00:20.8]} 25. Qxh6+ {[%clk
0:01:44.3]} 25... Ke7 {[%clk 0:00:18.4]} 26. Qh4+ {[%clk 0:01:34.9]} 26... Kd7
{[%clk 0:00:18.2]} 27. Bf5+ {[%clk 0:01:34]} 27... Ke8 {[%clk 0:00:12.2]} 28.
Rxe5+ {[%clk 0:00:55.5]} 28... dxe5 {[%clk 0:00:13.1]} 29. d6 {[%clk 0:00:55.8]}
29... Rxd6 {[%clk 0:00:12.1]} 30. Qh8+ {[%clk 0:00:55.5]} 30... Ke7 {[%clk
0:00:12.7]} 31. Qxe5+ {[%clk 0:00:55]} 31... Kf8 {[%clk 0:00:12.1]} 32. Qxd6+
{[%clk 0:00:54.7]} 1-0

[Event "*** Titled Tuesday Blitz"]
[Site "Chess.com"]
[Date "2020.05.05"]
[Round "3"]
[White "AlexZambrano"]
[Black "Luibov_AN"]
[Result "0-1"]
[WhiteElo "2296"]
[BlackElo "2102"]
[TimeControl "180+1"]
[EndTime "10:28:42 PDT"]
[Termination "Luibov_AN won on time"]

1. Nf3 {[%clk 0:02:59.4]} 1... g6 {[%clk 0:03:00]} 2. d4 {[%clk 0:02:59.2]} 2...
Bg7 {[%clk 0:03:00.3]} 3. g3 {[%clk 0:02:59.4]} 3... c5 {[%clk 0:03:00.8]} 4.
dxc5 {[%clk 0:02:56.7]} 4... Nc6 {[%clk 0:03:00.5]} 5. Bg2 {[%clk 0:02:56.2]}
5... Qa5+ {[%clk 0:03:00.5]} 6. c3 {[%clk 0:02:56.5]} 6... Qxc5 {[%clk
0:02:59.1]} 7. O-O {[%clk 0:02:57]} 7... d6 {[%clk 0:02:59]} 8. Nbd2 {[%clk
0:02:57.5]} 8... Nf6 {[%clk 0:02:58.5]} 9. Nb3 {[%clk 0:02:56.8]} 9... Qb6
{[%clk 0:02:58.4]} 10. Be3 {[%clk 0:02:56.8]} 10... Qc7 {[%clk 0:02:58.5]} 11.
Qd2 {[%clk 0:02:57.1]} 11... h6 {[%clk 0:02:54.7]} 12. Rfd1 {[%clk 0:02:55.8]}
12... Ng4 {[%clk 0:02:54.3]} 13. Bd4 {[%clk 0:02:53.2]} 13... Nxd4 {[%clk
0:02:53.7]} 14. Nbxd4 {[%clk 0:02:52.9]} 14... a6 {[%clk 0:02:53.1]} 15. h3
{[%clk 0:02:45.8]} 15... Nf6 {[%clk 0:02:52.2]} 16. Re1 {[%clk 0:02:33.2]} 16...
O-O {[%clk 0:02:50.9]} 17. e4 {[%clk 0:02:31.6]} 17... e5 {[%clk 0:02:46.7]} 18.
Nc2 {[%clk 0:02:28.8]} 18... Be6 {[%clk 0:02:45.7]} 19. Nb4 {[%clk 0:02:27.7]}
19... Qc5 {[%clk 0:02:37.6]} 20. Rad1 {[%clk 0:02:24.4]} 20... Rfd8 {[%clk
0:02:36.9]} 21. Nd5 {[%clk 0:02:21.5]} 21... Kh7 {[%clk 0:02:31.3]} 22. b4
{[%clk 0:02:05.3]} 22... Qa7 {[%clk 0:02:25.3]} 23. Nc7 {[%clk 0:01:58.2]} 23...
Rac8 {[%clk 0:02:17.3]} 24. Nxe6 {[%clk 0:01:58]} 24... fxe6 {[%clk 0:02:17.6]}
25. Bf1 {[%clk 0:01:57.4]} 25... b5 {[%clk 0:02:16.2]} 26. Ra1 {[%clk
0:01:47.1]} 26... Qc7 {[%clk 0:02:11.9]} 27. Rec1 {[%clk 0:01:44.9]} 27... Nxe4
{[%clk 0:02:10.5]} 28. Qe3 {[%clk 0:01:13.2]} 28... d5 {[%clk 0:02:07.9]} 29.
Nh4 {[%clk 0:00:56.6]} 29... Nxc3 {[%clk 0:01:59.3]} 30. Qf3 {[%clk 0:00:29.3]}
30... e4 {[%clk 0:01:51.6]} 31. Qg4 {[%clk 0:00:28.9]} 31... Qf7 {[%clk
0:01:50.2]} 32. Ng2 {[%clk 0:00:12.4]} 32... Rf8 {[%clk 0:01:38.3]} 33. Rc2
{[%clk 0:00:07.5]} 33... g5 {[%clk 0:01:30.5]} 34. h4 {[%clk 0:00:06.6]} 34...
Qf5 {[%clk 0:01:17.6]} 35. Qh5 {[%clk 0:00:04.9]} 35... d4 {[%clk 0:01:10.3]}
0-1

[Event "*** Titled Tuesday Blitz"]
[Site "Chess.com"]
[Date "2020.05.05"]
[Round "3"]
[White "ChessQueen"]
[Black "Alopekos"]
[Result "1-0"]
[WhiteElo "2707"]
[BlackElo "2432"]
[TimeControl "180+1"]
[EndTime "10:28:43 PDT"]
[Termination "ChessQueen won on time"]

1. e4 {[%clk 0:03:00.9]} 1... e5 {[%clk 0:02:59.7]} 2. Nf3 {[%clk 0:03:00.6]}
2... Nc6 {[%clk 0:03:00.1]} 3. Bc4 {[%clk 0:03:00.6]} 3... Nf6 {[%clk
0:02:59.4]} 4. d4 {[%clk 0:02:58.2]} 4... exd4 {[%clk 0:02:56.9]} 5. e5 {[%clk
0:02:55.7]} 5... Ng4 {[%clk 0:02:44.9]} 6. O-O {[%clk 0:02:52.3]} 6... d5 {[%clk
0:02:39.9]} 7. exd6 {[%clk 0:02:51.9]} 7... Bxd6 {[%clk 0:02:39.6]} 8. Re1+
{[%clk 0:02:50.7]} 8... Kf8 {[%clk 0:02:39.4]} 9. Nbd2 {[%clk 0:02:41]} 9... Bf5
{[%clk 0:02:06]} 10. Ne4 {[%clk 0:02:32.8]} 10... h6 {[%clk 0:01:48.7]} 11. Ng3
{[%clk 0:01:54.2]} 11... Bg6 {[%clk 0:01:28.4]} 12. a3 {[%clk 0:01:45.2]} 12...
Nge5 {[%clk 0:00:30.9]} 13. Bd5 {[%clk 0:01:36.7]} 13... Nxf3+ {[%clk
0:00:23.1]} 14. Bxf3 {[%clk 0:01:36.5]} 14... Kg8 {[%clk 0:00:17]} 15. b4 {[%clk
0:01:25.2]} 15... a5 {[%clk 0:00:07.8]} 16. b5 {[%clk 0:01:14]} 16... Ne5 {[%clk
0:00:08]} 17. Be4 {[%clk 0:01:14.6]} 17... Qf6 {[%clk 0:00:05.3]} 18. f4 {[%clk
0:01:05.3]} 18... Nd7 {[%clk 0:00:02.7]} 19. Bxb7 {[%clk 0:00:45.3]} 19... Rb8
{[%clk 0:00:02.4]} 20. Bc6 {[%clk 0:00:44.7]} 20... Nc5 {[%clk 0:00:02.6]} 21.
Bb2 {[%clk 0:00:41.8]} 21... Na4 {[%clk 0:00:02.7]} 22. Bxd4 {[%clk 0:00:41]}
22... Bc5 {[%clk 0:00:01.8]} 23. Bxc5 {[%clk 0:00:40.9]} 23... Nxc5 {[%clk
0:00:02.7]} 24. f5 {[%clk 0:00:39.1]} 24... Bxf5 {[%clk 0:00:03.1]} 25. Qd5
{[%clk 0:00:38.6]} 1-0

[Event "*** Titled Tuesday Blitz"]
[Site "Chess.com"]
[Date "2020.05.05"]
[Round "3"]
[White "Shota_Azaladze"]
[Black "agrigo3"]
[Result "1-0"]
[WhiteElo "2692"]
[BlackElo "2333"]
[TimeControl "180+1"]
[EndTime "10:28:43 PDT"]
[Termination "Shota_Azaladze won on time"]

1. Nf3 {[%clk 0:03:00.9]} 1... Nf6 {[%clk 0:02:54.1]} 2. g3 {[%clk 0:03:00.7]}
2... d5 {[%clk 0:02:53.7]} 3. Bg2 {[%clk 0:03:00.3]} 3... c6 {[%clk 0:02:54.3]}
4. O-O {[%clk 0:03:00.9]} 4... Bg4 {[%clk 0:02:54.2]} 5. d3 {[%clk 0:03:01]}
5... Nbd7 {[%clk 0:02:54.2]} 6. Nbd2 {[%clk 0:03:01]} 6... e5 {[%clk 0:02:54.4]}
7. e4 {[%clk 0:03:00.9]} 7... dxe4 {[%clk 0:02:54.4]} 8. dxe4 {[%clk 0:03:01.8]}
8... Be7 {[%clk 0:02:49.3]} 9. h3 {[%clk 0:03:01.4]} 9... Bh5 {[%clk 0:02:48.4]}
10. Qe1 {[%clk 0:03:01.2]} 10... O-O {[%clk 0:02:43.5]} 11. a4 {[%clk
0:03:00.1]} 11... a5 {[%clk 0:02:41.9]} 12. Nc4 {[%clk 0:02:59]} 12... Qc7
{[%clk 0:02:41.8]} 13. Bd2 {[%clk 0:02:58.7]} 13... b6 {[%clk 0:02:34]} 14. Bc3
{[%clk 0:02:58.5]} 14... Bxf3 {[%clk 0:02:31.8]} 15. Bxf3 {[%clk 0:02:59.4]}
15... Rfe8 {[%clk 0:02:22.7]} 16. Bg2 {[%clk 0:02:44.6]} 16... Bc5 {[%clk
0:02:22.1]} 17. Qd2 {[%clk 0:02:36.8]} 17... Nf8 {[%clk 0:02:12.7]} 18. Rfd1
{[%clk 0:02:31.8]} 18... Rad8 {[%clk 0:02:05.1]} 19. Qg5 {[%clk 0:02:21.3]}
19... Bd4 {[%clk 0:01:51]} 20. Bxd4 {[%clk 0:02:11.3]} 20... exd4 {[%clk
0:01:49]} 21. e5 {[%clk 0:02:10.5]} 21... Ne6 {[%clk 0:01:44.8]} 22. Qh4 {[%clk
0:01:58.5]} 22... Nd5 {[%clk 0:01:35.3]} 23. Be4 {[%clk 0:01:35]} 23... h6
{[%clk 0:01:28.6]} 24. Rd2 {[%clk 0:01:24.9]} 24... Rd7 {[%clk 0:01:11.4]} 25.
Nd6 {[%clk 0:01:21.5]} 25... Rxd6 {[%clk 0:01:06.8]} 26. exd6 {[%clk 0:01:20.8]}
26... Qxd6 {[%clk 0:01:06.9]} 27. Bg2 {[%clk 0:01:16.9]} 27... Rd8 {[%clk
0:00:55.5]} 28. Rad1 {[%clk 0:01:11.8]} 28... Qb4 {[%clk 0:00:51.6]} 29. Rxd4
{[%clk 0:01:10.5]} 29... Qxb2 {[%clk 0:00:46.6]} 30. c4 {[%clk 0:01:04.7]} 30...
Rd7 {[%clk 0:00:18.9]} 31. R4d2 {[%clk 0:01:02.1]} 31... Qb4 {[%clk 0:00:06.3]}
32. cxd5 {[%clk 0:01:00.7]} 32... Qxh4 {[%clk 0:00:06.3]} 33. gxh4 {[%clk
0:01:01.6]} 33... cxd5 {[%clk 0:00:06.4]} 34. Rxd5 {[%clk 0:01:01.1]} 1-0

[Event "*** Titled Tuesday Blitz"]
[Site "Chess.com"]
[Date "2020.05.05"]
[Round "3"]
[White "Trankuilizer"]
[Black "Rafael_Ventura"]
[Result "1-0"]
[WhiteElo "2518"]
[BlackElo "2280"]
[TimeControl "180+1"]
[EndTime "10:28:43 PDT"]
[Termination "Trankuilizer won by checkmate"]

1. e4 {[%clk 0:03:00.9]} 1... c5 {[%clk 0:02:33.6]} 2. c3 {[%clk 0:03:00.5]}
2... Nf6 {[%clk 0:02:33.2]} 3. e5 {[%clk 0:03:00.1]} 3... Nd5 {[%clk 0:02:33.7]}
4. d4 {[%clk 0:03:00.5]} 4... cxd4 {[%clk 0:02:34.6]} 5. Nf3 {[%clk 0:03:01.1]}
5... Nc6 {[%clk 0:02:35.1]} 6. cxd4 {[%clk 0:03:01.4]} 6... Nb6 {[%clk
0:02:35.6]} 7. d5 {[%clk 0:02:54.9]} 7... Nb4 {[%clk 0:02:35.2]} 8. Nc3 {[%clk
0:02:54.7]} 8... e6 {[%clk 0:02:35.5]} 9. d6 {[%clk 0:02:53.4]} 9... N4d5 {[%clk
0:02:35.8]} 10. Bd3 {[%clk 0:02:38.9]} 10... Nxc3 {[%clk 0:02:30.1]} 11. bxc3
{[%clk 0:02:38.4]} 11... Nd5 {[%clk 0:02:14.8]} 12. O-O {[%clk 0:02:37.5]} 12...
f6 {[%clk 0:02:01.2]} 13. c4 {[%clk 0:02:35.1]} 13... Nb4 {[%clk 0:01:58.7]} 14.
Re1 {[%clk 0:02:17.1]} 14... Nxd3 {[%clk 0:01:48.6]} 15. Qxd3 {[%clk 0:02:16.2]}
15... g6 {[%clk 0:01:49.2]} 16. exf6 {[%clk 0:01:48.7]} 16... Qxf6 {[%clk
0:01:48.8]} 17. Bg5 {[%clk 0:01:49.1]} 17... Qf5 {[%clk 0:01:49.2]} 18. Qc3
{[%clk 0:01:47.3]} 18... Rg8 {[%clk 0:01:43.1]} 19. Rad1 {[%clk 0:01:46.7]}
19... Bg7 {[%clk 0:01:42.3]} 20. Qb3 {[%clk 0:01:34.1]} 20... h6 {[%clk
0:01:41.8]} 21. Be3 {[%clk 0:01:26.9]} 21... g5 {[%clk 0:01:38.7]} 22. Bd4
{[%clk 0:01:25.2]} 22... b6 {[%clk 0:01:30.1]} 23. Bxg7 {[%clk 0:01:22.4]} 23...
Rxg7 {[%clk 0:01:30.2]} 24. Nd4 {[%clk 0:01:14.9]} 24... Qf6 {[%clk 0:01:13.7]}
25. Nb5 {[%clk 0:01:00.4]} 25... Kf8 {[%clk 0:01:13.6]} 26. c5 {[%clk 0:00:59]}
26... Rf7 {[%clk 0:00:51.9]} 27. f3 {[%clk 0:00:49.5]} 27... g4 {[%clk
0:00:47.2]} 28. Rf1 {[%clk 0:00:39.8]} 28... gxf3 {[%clk 0:00:41.4]} 29. Rxf3
{[%clk 0:00:39.5]} 29... Qg6 {[%clk 0:00:41.7]} 30. Rxf7+ {[%clk 0:00:38.5]}
30... Kxf7 {[%clk 0:00:42.6]} 31. Qf3+ {[%clk 0:00:38.1]} 31... Qf5 {[%clk
0:00:39.4]} 32. Qxa8 {[%clk 0:00:34.5]} 32... Qxc5+ {[%clk 0:00:39.5]} 33. Kh1
{[%clk 0:00:34.5]} 33... Qxb5 {[%clk 0:00:37.3]} 34. Qxc8 {[%clk 0:00:33.4]}
34... a5 {[%clk 0:00:37.1]} 35. Qc2 {[%clk 0:00:31.6]} 35... e5 {[%clk 0:00:37]}
36. Qh7+ {[%clk 0:00:29.4]} 36... Ke6 {[%clk 0:00:37.2]} 37. Qg6# {[%clk
0:00:29]} 1-0

[Event "*** Titled Tuesday Blitz"]
[Site "Chess.com"]
[Date "2020.05.05"]
[Round "3"]
[White "petroniy_arbitr"]
[Black "Kaponov"]
[Result "1-0"]
[WhiteElo "2314"]
[BlackElo "2058"]
[TimeControl "180+1"]
[EndTime "10:28:43 PDT"]
[Termination "petroniy_arbitr won by resignation"]

1. d4 {[%clk 0:03:00.9]} 1... Nf6 {[%clk 0:02:59.4]} 2. c4 {[%clk 0:03:00.8]}
2... e6 {[%clk 0:02:59.8]} 3. Nf3 {[%clk 0:03:00.1]} 3... Bb4+ {[%clk
0:02:59.9]} 4. Bd2 {[%clk 0:02:58.3]} 4... Bxd2+ {[%clk 0:03:00.2]} 5. Nbxd2
{[%clk 0:02:58.8]} 5... d5 {[%clk 0:03:00.7]} 6. e3 {[%clk 0:02:55.4]} 6... O-O
{[%clk 0:02:57.4]} 7. Be2 {[%clk 0:02:53.1]} 7... Nbd7 {[%clk 0:02:56.8]} 8. O-O
{[%clk 0:02:52.9]} 8... c5 {[%clk 0:02:57.3]} 9. Rc1 {[%clk 0:02:50]} 9... cxd4
{[%clk 0:02:57.3]} 10. Nxd4 {[%clk 0:02:47.3]} 10... a6 {[%clk 0:02:57.8]} 11.
cxd5 {[%clk 0:02:33.2]} 11... Nxd5 {[%clk 0:02:56.6]} 12. Nc4 {[%clk 0:02:16.4]}
12... N7b6 {[%clk 0:02:47.2]} 13. Ne5 {[%clk 0:02:12.8]} 13... f6 {[%clk
0:02:36.4]} 14. Nd3 {[%clk 0:02:09.9]} 14... e5 {[%clk 0:02:34.6]} 15. Nb3
{[%clk 0:02:06.2]} 15... Bf5 {[%clk 0:02:07.9]} 16. Ndc5 {[%clk 0:02:02.4]}
16... Qe7 {[%clk 0:01:58.5]} 17. e4 {[%clk 0:01:55.5]} 17... Bxe4 {[%clk
0:01:38]} 18. Nxe4 {[%clk 0:01:55.2]} 18... Nf4 {[%clk 0:01:38.1]} 19. Bf3
{[%clk 0:01:34.5]} 19... Rfd8 {[%clk 0:01:38.1]} 20. Qc2 {[%clk 0:01:31.3]}
20... Rac8 {[%clk 0:01:36.1]} 21. Nc3 {[%clk 0:01:29.5]} 21... Na4 {[%clk
0:01:22.9]} 22. Rfd1 {[%clk 0:01:22.8]} 22... Rxd1+ {[%clk 0:01:16.7]} 23. Rxd1
{[%clk 0:01:20.7]} 23... Qb4 {[%clk 0:01:06.7]} 24. g3 {[%clk 0:01:11.8]} 24...
Nh3+ {[%clk 0:01:01]} 25. Kg2 {[%clk 0:01:09.3]} 25... Ng5 {[%clk 0:01:01.1]}
26. Bd5+ {[%clk 0:01:06.1]} 26... Nf7 {[%clk 0:00:31.8]} 27. Qf5 {[%clk
0:01:01.9]} 27... Rf8 {[%clk 0:00:18.9]} 28. Bxf7+ {[%clk 0:00:57]} 28... Rxf7
{[%clk 0:00:18.1]} 29. Rd8+ {[%clk 0:00:56.1]} 29... Rf8 {[%clk 0:00:18]} 30.
Qe6+ {[%clk 0:00:56.1]} 30... Kh8 {[%clk 0:00:15.4]} 31. Rxf8+ {[%clk 0:00:56]}
31... Qxf8 {[%clk 0:00:15.7]} 32. Nxa4 {[%clk 0:00:55.4]} 1-0

[Event "*** Titled Tuesday Blitz"]
[Site "Chess.com"]
[Date "2020.05.05"]
[Round "3"]
[White "rogapa"]
[Black "TERMINATOR_PC"]
[Result "1/2-1/2"]
[WhiteElo "2702"]
[BlackElo "2455"]
[TimeControl "180+1"]
[EndTime "10:28:47 PDT"]
[Termination "Game drawn by agreement"]

1. e4 {[%clk 0:03:00.2]} 1... Nf6 {[%clk 0:03:00.3]} 2. e5 {[%clk 0:02:59.3]}
2... Nd5 {[%clk 0:03:00.5]} 3. d4 {[%clk 0:03:00.2]} 3... d6 {[%clk 0:03:00.6]}
4. Nf3 {[%clk 0:03:01.1]} 4... dxe5 {[%clk 0:03:01]} 5. Nxe5 {[%clk 0:03:00.7]}
5... c6 {[%clk 0:03:01.5]} 6. c4 {[%clk 0:02:54.3]} 6... Nb4 {[%clk 0:03:01.2]}
7. Be3 {[%clk 0:02:32.7]} 7... Bf5 {[%clk 0:03:01]} 8. Nd3 {[%clk 0:02:28.4]}
8... e5 {[%clk 0:02:57.6]} 9. Nxb4 {[%clk 0:02:24.2]} 9... Bxb4+ {[%clk
0:02:58.5]} 10. Nc3 {[%clk 0:02:24.7]} 10... Qa5 {[%clk 0:02:49.5]} 11. Qb3
{[%clk 0:02:09]} 11... Nd7 {[%clk 0:02:42.5]} 12. a3 {[%clk 0:02:05.3]} 12...
Bxc3+ {[%clk 0:02:33.4]} 13. Qxc3 {[%clk 0:02:06.2]} 13... Qxc3+ {[%clk
0:02:19.3]} 14. bxc3 {[%clk 0:02:07.1]} 14... O-O-O {[%clk 0:02:07.7]} 15. Be2
{[%clk 0:01:59.7]} 15... Rhe8 {[%clk 0:02:02.5]} 16. O-O-O {[%clk 0:01:56.9]}
16... exd4 {[%clk 0:01:45.3]} 17. cxd4 {[%clk 0:01:55.1]} 17... Nf6 {[%clk
0:01:40.3]} 18. Rhe1 {[%clk 0:01:49.3]} 18... Ng4 {[%clk 0:01:31.4]} 19. Bxg4
{[%clk 0:01:21.8]} 19... Bxg4 {[%clk 0:01:32.3]} 20. f3 {[%clk 0:01:21.6]} 20...
Be6 {[%clk 0:01:32.3]} 21. d5 {[%clk 0:01:17.6]} 21... cxd5 {[%clk 0:01:28.9]}
22. cxd5 {[%clk 0:01:18.5]} 22... Rxd5 {[%clk 0:01:26.2]} 23. Rxd5 {[%clk
0:01:04.1]} 23... Bxd5 {[%clk 0:01:27.1]} 24. Bf2 {[%clk 0:01:04.8]} 24... Rxe1+
{[%clk 0:01:12.6]} 25. Bxe1 {[%clk 0:01:05.7]} 25... Kd7 {[%clk 0:01:04]} 26.
Kd2 {[%clk 0:01:04.1]} 26... Kc6 {[%clk 0:00:53.9]} 27. Kc3 {[%clk 0:01:03.1]}
27... b6 {[%clk 0:00:50.2]} 28. Bh4 {[%clk 0:01:00.3]} 28... f6 {[%clk
0:00:49.8]} 29. Bg3 {[%clk 0:00:58.2]} 29... a5 {[%clk 0:00:48.8]} 30. Bf2
{[%clk 0:00:57.3]} 30... Be6 {[%clk 0:00:48]} 31. Bd4 {[%clk 0:00:55.3]} 31...
Bf5 {[%clk 0:00:47.7]} 32. g4 {[%clk 0:00:53.8]} 32... Be6 {[%clk 0:00:48]} 33.
h4 {[%clk 0:00:53.1]} 33... Bd5 {[%clk 0:00:46.2]} 34. f4 {[%clk 0:00:52.9]}
34... Bf3 {[%clk 0:00:44]} 35. g5 {[%clk 0:00:53.8]} 35... fxg5 {[%clk
0:00:42.9]} 36. fxg5 {[%clk 0:00:53.6]} 36... g6 {[%clk 0:00:42.4]} 37. Bf2
{[%clk 0:00:53.1]} 37... b5 {[%clk 0:00:38.1]} 38. Be3 {[%clk 0:00:52.2]} 38...
Be4 {[%clk 0:00:34.5]} 39. Bf2 {[%clk 0:00:51.7]} 39... Bf5 {[%clk 0:00:35]} 40.
Be3 {[%clk 0:00:51.3]} 40... Be6 {[%clk 0:00:33.2]} 1/2-1/2